fUSD/lending_fUSD_20250616
["ID","MTS","AMOUNT","RATE_DAILY","PERIOD"]
[366077399,1750050689585,-769.08,0.00016931,2]
[366077400,1750050689596,-910.08,0.00016931,2]
[366077401,1750050689607,-490.0,0.00016931,2]
[366077402,1750050689617,-572.55,0.00016931,2]
[366077403,1750050689627,-1521.57,0.00016931,2]
[366077404,1750050689638,-490.0,0.00016931,2]
[366077405,1750050689647,-490.0,0.00016931,2]
[366077406,1750050689658,-577.87,0.00016931,2]
[366077407,1750050689667,-490.0,0.00016931,2]
[366077408,1750050689678,-588.39,0.00016931,2]
[366077409,1750050689688,-1435.53,0.00016931,2]
[366077410,1750050689699,-1115.73,0.00016931,2]
[366077411,1750050689709,-729.4,0.00016931,2]
[366077412,1750050689719,-490.0,0.00016931,2]
[366077413,1750050689729,-490.0,0.00016931,2]
[366077414,1750050689739,-490.0,0.00016931,2]
[366077415,1750050689750,-1052.69,0.00016931,2]
[366077416,1750050689760,-490.0,0.00016931,2]
[366077417,1750050689770,-490.0,0.00016931,2]
[366077418,1750050689780,-1623.41,0.00016931,2]
[366077419,1750050689790,-1192.61,0.00016931,2]
[366077420,1750050689800,-490.0,0.00016931,2]
[366077421,1750050689810,-490.0,0.00016931,2]
[366077422,1750050689820,-490.0,0.00016931,2]
[366077423,1750050689830,-490.0,0.00016931,2]
[366077424,1750050689841,-2022.79,0.00016931,2]
[366077425,1750050689852,-490.0,0.00016931,2]
[366077426,1750050689862,-1578.35,0.00016931,2]
[366077427,1750050689874,-490.0,0.00016931,2]
[366077428,1750050689884,-644.54,0.00016931,2]
[366077429,1750050690108,-490.0,0.00016931,2]
[366077430,1750050690127,-923.58,0.00016931,2]
[366077431,1750050690138,-1189.22,0.00016931,2]
[366077432,1750050690148,-1700.25,0.00016931,2]
[366077433,1750050690158,-1008.56,0.00016931,2]
[366077434,1750050690167,-1294.0,0.00016931,2]
[366077435,1750050690177,-1418.19,0.00016931,2]
[366077436,1750050690186,-717.65,0.00016931,2]
[366077437,1750050690196,-490.0,0.00016931,2]
[366077438,1750050690206,-490.0,0.00016931,2]
[366077439,1750050690215,-453.88,0.00016931,2]
[366077440,1750050690224,-490.0,0.00016931,2]
[366077441,1750050690234,-490.0,0.00016931,2]
[366077442,1750050690243,-490.0,0.00016931,2]
[366077443,1750050690252,-810.63,0.00016931,2]
[366077444,1750050690262,-490.0,0.00016931,2]
[366077445,1750050690271,-790.52,0.00016931,2]
[366077446,1750050690280,-490.0,0.00016931,2]
[366077447,1750050690290,-726.24,0.00016931,2]
[366077448,1750050690299,-286.76162895,0.00016931,2]
[366077449,1750050691003,-469.22837105,0.00016931,2]
[366077450,1750050691014,-490.0,0.00016931,2]
[366077451,1750050691024,-1875.69407773,0.00016931,2]
[366077452,1750050691058,-1006.6886836,0.00016602,2]
[366077453,1750050691779,-940.0,0.00016438,2]
[366077454,1750050691791,-387.31434998,0.00016438,2]
[366077455,1750050691803,-375.47565002,0.00016438,2]
[366077456,1750050691814,-1123.9,0.00016438,2]
[366077457,1750050691824,-154.58452692,0.00016438,2]
[366077458,1750050691834,-70.28983056,0.00016438,2]
[366077459,1750050691859,-419.71016944,0.00016438,2]
[366077460,1750050691869,-155.6913164,0.00016602,2]
[366077461,1750050691878,-1702.79,0.00016602,2]
[366077462,1750050691889,-1123.9,0.00016602,2]
[366077463,1750050691902,-490.0,0.00016602,2]
[366077464,1750050691912,-1162.38,0.00016767,2]
[366077465,1750050691922,-1123.9,0.00016767,2]
[366077466,1750050691932,-1702.79,0.00016767,2]
[366077467,1750050691943,-490.0,0.00016767,2]
[366077468,1750050691952,-233.75592227,0.00016931,2]
[366077469,1750050691962,-796.51,0.00016931,2]
[366077470,1750050691974,-490.0,0.00016931,2]
[366077471,1750050691984,-1250.18,0.00016931,2]
[366077472,1750050691994,-610.64,0.00016931,2]
[366077473,1750050692004,-708.23,0.00016931,2]
[366077474,1750050692014,-490.0,0.00016931,2]
[366077475,1750050692023,-490.0,0.00016931,2]
[366077476,1750050692033,-650.65,0.00016931,2]
[366077477,1750050692043,-1179.56,0.00016931,2]
[366077478,1750050692052,-1107.54,0.00016931,2]
[366077479,1750050692063,-800.29,0.00016931,2]
[366077480,1750050692372,-633.96,0.00016931,2]
[366077481,1750050692449,-631.83,0.00016931,2]
[366077482,1750050692459,-598.73,0.00016931,2]
[366077483,1750050692468,-1244.17,0.00016931,2]
[366077484,1750050692478,-1507.9,0.00016931,2]
[366077485,1750050692487,-264.61577739,0.00016931,2]
[366077486,1750050692497,-490.0,0.00016931,2]
[366077487,1750050692507,-870.35,0.00016931,2]
[366077488,1750050692516,-540.49,0.00016931,2]
[366077489,1750050692526,-632.75513098,0.00016931,2]
[366077490,1750050692537,-490.0,0.00016931,2]
[366077491,1750050692546,-1399.35,0.00016931,2]
[366077492,1750050692556,-595.26,0.00016931,2]
[366077493,1750050692566,-490.0,0.00016931,2]
[366077494,1750050692575,-490.0,0.00016931,2]
[366077495,1750050692585,-590.81,0.00016931,2]
[366077496,1750050692595,-490.0,0.00016931,2]
[366077497,1750050692605,-490.0,0.00016931,2]
[366077498,1750050692615,-700.48,0.00016931,2]
[366077499,1750050692626,-490.0,0.00016931,2]
[366077500,1750050692635,-1315.08,0.00016931,2]
[366077501,1750050692645,-909.03,0.00016931,2]
[366077502,1750050692655,-737.68,0.00016931,2]
[366077503,1750050692664,-681.28,0.00016931,2]
[366077504,1750050692674,-490.0,0.00016931,2]
[366077505,1750050692684,-763.29,0.00016931,2]
[366077506,1750050692694,-490.0,0.00016931,2]
[366077507,1750050692703,-578.23,0.00016931,2]
[366077508,1750050692713,-676.15,0.00016931,2]
[366077509,1750050692723,-1989.42,0.00016931,2]
[366077510,1750050692733,-1455.94,0.00016931,2]
[366077511,1750050692742,-2470.39,0.00016931,2]
[366077512,1750050692753,-993.3,0.00016931,2]
[366077513,1750050692763,-490.0,0.00016931,2]
[366077514,1750050692773,-490.0,0.00016931,2]
[366077515,1750050692783,-1660.18,0.00016931,2]
[366077516,1750050692792,-682.96,0.00016931,2]
[366077517,1750050692802,-907.1,0.00016931,2]
[366077518,1750050692812,-490.0,0.00016931,2]
[366077519,1750050692822,-490.0,0.00016931,2]
[366077520,1750050692832,-1456.69,0.00016931,2]
[366077521,1750050692842,-956.25,0.00016931,2]
[366077522,1750050692852,-490.0,0.00016931,2]
[366077523,1750050692863,-490.0,0.00016931,2]
[366077524,1750050692873,-490.0,0.00016931,2]
[366077525,1750050692882,-490.0,0.00016931,2]
[366077526,1750050692893,-490.0,0.00016931,2]
[366077527,1750050692907,-544.49,0.00016931,2]
[366077528,1750050692917,-852.19,0.00016931,2]
[366077529,1750050692927,-2052.42,0.00016931,2]
[366077530,1750050692938,-490.0,0.00016931,2]
[366077531,1750050692947,-490.0,0.00016931,2]
[366077532,1750050692958,-1190.31,0.00016931,2]
[366077533,1750050692968,-565.36,0.00016931,2]
[366077534,1750050692979,-1358.83,0.00016931,2]
[366077535,1750050692990,-794.31,0.00016931,2]
[366077536,1750050693000,-505.31,0.00016931,2]
[366077537,1750050693010,-490.0,0.00016931,2]
[366077538,1750050693021,-490.0,0.00016931,2]
[366077539,1750050693032,-490.0,0.00016931,2]
[366077540,1750050693042,-490.0,0.00016931,2]
[366077541,1750050693052,-1330.59,0.00016931,2]
[366077542,1750050693063,-710.59,0.00016931,2]
[366077543,1750050693073,-490.0,0.00016931,2]
[366077544,1750050693084,-490.0,0.00016931,2]
[366077545,1750050693095,-980.45,0.00016931,2]
[366077546,1750050693105,-508.45,0.00016931,2]
[366077547,1750050693115,-490.0,0.00016931,2]
[366077548,1750050693126,-992.58,0.00016931,2]
[366077549,1750050693137,-524.45,0.00016931,2]
[366077550,1750050693146,-490.0,0.00016931,2]
[366077551,1750050693157,-758.97,0.00016931,2]
[366077552,1750050693167,-490.0,0.00016931,2]
[366077553,1750050693177,-490.0,0.00016931,2]
[366077554,1750050693187,-490.0,0.00016931,2]
[366077555,1750050693198,-759.14,0.00016931,2]
[366077556,1750050693209,-699.08,0.00016931,2]
[366077557,1750050693218,-490.0,0.00016931,2]
[366077558,1750050693228,-649.21,0.00016931,2]
[366077559,1750050693238,-490.0,0.00016931,2]
[366077560,1750050693249,-1246.39,0.00016931,2]
[366077561,1750050693259,-1865.55,0.00016931,2]
[366077562,1750050693270,-490.0,0.00016931,2]
[366077563,1750050693280,-490.0,0.00016931,2]
[366077564,1750050693291,-589.95,0.00016931,2]
[366077565,1750050693301,-2489.45,0.00016931,2]
[366077566,1750050693310,-490.0,0.00016931,2]
[366077567,1750050693320,-723.25,0.00016931,2]
[366077568,1750050693331,-490.0,0.00016931,2]
[366077569,1750050693340,-2018.3,0.00016931,2]
[366077570,1750050693350,-2317.57,0.00016931,2]
[366077571,1750050693360,-697.24,0.00016931,2]
[366077572,1750050693371,-490.0,0.00016931,2]
[366077573,1750050693381,-490.0,0.00016931,2]
[366077574,1750050693392,-512.48,0.00016931,2]
[366077575,1750050693401,-522.57623248,0.00016931,2]
[366077576,1750050693410,-628.88,0.00016931,2]
[366077577,1750050693420,-594.73,0.00016931,2]
[366077578,1750050693430,-490.0,0.00016931,2]
[366077579,1750050693439,-490.0,0.00016931,2]
[366077580,1750050693449,-2906.26,0.00016931,2]
[366077581,1750050693458,-490.0,0.00016931,2]
[366077582,1750050693468,-490.0,0.00016931,2]
[366077583,1750050693478,-594.61,0.00016931,2]
[366077584,1750050693488,-1912.64,0.00016931,2]
[366077585,1750050693497,-1471.5,0.00016931,2]
[366077586,1750050693507,-490.0,0.00016931,2]
[366077587,1750050693516,-490.0,0.00016931,2]
[366077588,1750050693526,-546.51,0.00016931,2]
[366077589,1750050693536,-490.0,0.00016931,2]
[366077590,1750050693546,-490.0,0.00016931,2]
[366077591,1750050693556,-490.0,0.00016931,2]
[366077592,1750050693565,-943.3,0.00016931,2]
[366077593,1750050693576,-572.51,0.00016931,2]
[366077594,1750050693585,-1743.9,0.00016931,2]
[366077595,1750050693596,-582.28,0.00016931,2]
[366077596,1750050693606,-1808.31,0.00016931,2]
[366077597,1750050693616,-547.88,0.00016931,2]
[366077598,1750050693626,-516.31,0.00016931,2]
[366077599,1750050693635,-770.17,0.00016931,2]
[366077600,1750050693645,-490.0,0.00016931,2]
[366077601,1750050693655,-490.0,0.00016931,2]
[366077602,1750050693665,-523.89,0.00016931,2]
[366077603,1750050693675,-1540.75,0.00016931,2]
[366077604,1750050693684,-504.55,0.00016931,2]
[366077605,1750050693694,-490.0,0.00016931,2]
[366077606,1750050693703,-490.0,0.00016931,2]
[366077607,1750050693713,-677.86,0.00016931,2]
[366077608,1750050693723,-694.54,0.00016931,2]
[366077609,1750050693732,-490.0,0.00016931,2]
[366077610,1750050693742,-1595.75,0.00016931,2]
[366077611,1750050693752,-1766.25,0.00016931,2]
[366077612,1750050693762,-1297.53,0.00016931,2]
[366077613,1750050693771,-490.0,0.00016931,2]
[366077614,1750050693782,-672.79,0.00016931,2]
[366077615,1750050693791,-490.0,0.00016931,2]
[366077616,1750050693801,-1492.3,0.00016931,2]
[366077617,1750050693811,-507.51,0.00016931,2]
[366077618,1750050693821,-684.56,0.00016931,2]
[366077619,1750050693831,-2063.82,0.00016931,2]
[366077620,1750050693840,-582.08,0.00016931,2]
[366077621,1750050693850,-879.19,0.00016931,2]
[366077622,1750050693860,-864.94,0.00016931,2]
[366077623,1750050693871,-1436.33,0.00016931,2]
[366077624,1750050693880,-1101.25,0.00016931,2]
[366077625,1750050693890,-490.0,0.00016931,2]
[366077626,1750050693903,-490.0,0.00016931,2]
[366077627,1750050693913,-568.12,0.00016931,2]
[366077628,1750050693922,-680.31,0.00016931,2]
[366077629,1750050693932,-1493.52,0.00016931,2]
[366077630,1750050693943,-514.7,0.00016931,2]
[366077631,1750050693952,-1234.94,0.00016931,2]
[366077632,1750050693962,-886.73,0.00016931,2]
[366077633,1750050693972,-490.0,0.00016931,2]
[366077634,1750050693982,-624.14,0.00016931,2]
[366077635,1750050693992,-490.0,0.00016931,2]
[366077636,1750050694002,-1531.01,0.00016931,2]
[366077637,1750050694011,-1180.8,0.00016931,2]
[366077638,1750050694020,-1542.34,0.00016931,2]
[366077639,1750050694030,-490.0,0.00016931,2]
[366077640,1750050694040,-1655.09,0.00016931,2]
[366077641,1750050694049,-546.63,0.00016931,2]
[366077642,1750050694058,-776.28,0.00016931,2]
[366077643,1750050694068,-1167.87,0.00016931,2]
[366077644,1750050694077,-490.0,0.00016931,2]
[366077645,1750050694087,-2040.69,0.00016931,2]
[366077646,1750050694096,-2000.36,0.00016931,2]
[366077647,1750050694106,-490.0,0.00016931,2]
[366077648,1750050694116,-580.17,0.00016931,2]
[366077649,1750050694125,-535.55,0.00016931,2]
[366077650,1750050694134,-332.01493035,0.00016931,2]
[366077651,1750050694144,-490.0,0.00016931,2]
[366077652,1750050694153,-1881.06,0.00016931,2]
[366077653,1750050694162,-490.0,0.00016931,2]
[366077654,1750050694171,-536.81,0.00016931,2]
[366077655,1750050694181,-1057.14,0.00016931,2]
[366077656,1750050694190,-642.03,0.00016931,2]
[366077657,1750050694200,-1373.56,0.00016931,2]
[366077658,1750050694209,-1843.73,0.00016931,2]
[366077659,1750050694219,-490.0,0.00016931,2]
[366077660,1750050694228,-1527.66,0.00016931,2]
[366077661,1750050694238,-490.0,0.00016931,2]
[366077662,1750050694247,-543.25,0.00016931,2]
[366077663,1750050694257,-490.0,0.00016931,2]
[366077664,1750050694267,-1689.59,0.00016931,2]
[366077665,1750050694277,-490.0,0.00016931,2]
[366077666,1750050694286,-2136.64,0.00016931,2]
[366077667,1750050694295,-729.54,0.00016931,2]
[366077668,1750050694305,-668.54,0.00016931,2]
[366077669,1750050694314,-545.35,0.00016931,2]
[366077670,1750050694323,-490.0,0.00016931,2]
[366077671,1750050694332,-9830.46,0.00016931,2]
[366077672,1750050694342,-26331.95,0.00016931,2]
[366077673,1750050694351,-490.0,0.00016931,2]
[366077674,1750050694361,-1716.44,0.00016931,2]
[366077675,1750050694372,-1386.07,0.00016931,2]
[366077676,1750050694382,-2034.18,0.00016931,2]
[366077677,1750050694391,-1607.2,0.00016931,2]
[366077678,1750050694402,-6313.97,0.00016931,2]
[366077679,1750050694412,-1390.25,0.00016931,2]
[366077680,1750050694422,-702.1,0.00016931,2]
[366077681,1750050694431,-651.74,0.00016931,2]
[366077682,1750050694440,-1252.94,0.00016931,2]
[366077683,1750050694450,-3172.04,0.00016931,2]
[366077684,1750050694460,-490.0,0.00016931,2]
[366077685,1750050694470,-3644.89,0.00016931,2]
[366077686,1750050694479,-831.05,0.00016931,2]
[366077687,1750050694490,-2024.87,0.00016931,2]
[366077688,1750050694499,-756.27,0.00016931,2]
[366077689,1750050694509,-1768.55,0.00016931,2]
[366077690,1750050694518,-1631.36,0.00016931,2]
[366077691,1750050694528,-2056.67,0.00016931,2]
[366077692,1750050694538,-596.21,0.00016931,2]
[366077693,1750050694548,-5065.08,0.00016931,2]
[366077694,1750050694557,-490.0,0.00016931,2]
[366077695,1750050694567,-565.57,0.00016931,2]
[366077696,1750050694577,-2024.74,0.00016931,2]
[366077697,1750050694586,-2574.47,0.00016931,2]
[366077698,1750050694596,-490.0,0.00016931,2]
[366077699,1750050694606,-1271.2,0.00016931,2]
[366077700,1750050694615,-3936.07,0.00016931,2]
[366077701,1750050694627,-669.5,0.00016931,2]
[366077702,1750050694636,-1230.02,0.00016931,2]
[366077703,1750050694646,-490.0,0.00016931,2]
[366077704,1750050694656,-490.0,0.00016931,2]
[366077705,1750050694666,-490.0,0.00016931,2]
[366077706,1750050694675,-1180.9,0.00016931,2]
[366077707,1750050694685,-2535.07,0.00016931,2]
[366077708,1750050694695,-809.13,0.00016931,2]
[366077709,1750050694705,-490.0,0.00016931,2]
[366077710,1750050694715,-490.0,0.00016931,2]
[366077711,1750050694724,-1773.27,0.00016931,2]
[366077712,1750050694734,-490.0,0.00016931,2]
[366077713,1750050694743,-1700.58,0.00016931,2]
[366077714,1750050694753,-554.78,0.00016931,2]
[366077715,1750050694763,-1647.15,0.00016931,2]
[366077716,1750050694773,-490.0,0.00016931,2]
[366077717,1750050694783,-564.96,0.00016931,2]
[366077718,1750050694792,-1593.96,0.00016931,2]
[366077719,1750050694803,-534.05,0.00016931,2]
[366077720,1750050694813,-2448.75,0.00016931,2]
[366077721,1750050694823,-1117.73,0.00016931,2]
[366077722,1750050694832,-3106.22,0.00016931,2]
[366077723,1750050694846,-2727.13,0.00016931,2]
[366077724,1750050694855,-490.0,0.00016931,2]
[366077725,1750050694865,-631.5,0.00016931,2]
[366077726,1750050694874,-580.02,0.00016931,2]
[366077727,1750050694884,-1116.32,0.00016931,2]
[366077728,1750050694894,-1538.72,0.00016931,2]
[366077729,1750050694906,-1590.62,0.00016931,2]
[366077730,1750050694915,-4516.12,0.00016931,2]
[366077731,1750050694925,-3539.85,0.00016931,2]
[366077732,1750050694935,-490.0,0.00016931,2]
[366077733,1750050694948,-1307.61,0.00016931,2]
[366077734,1750050694957,-1095.05,0.00016931,2]
[366077735,1750050694967,-2759.97,0.00016931,2]
[366077736,1750050694979,-884.01,0.00016931,2]
[366077737,1750050694989,-635.26,0.00016931,2]
[366077738,1750050694999,-490.0,0.00016931,2]
[366077739,1750050695009,-490.0,0.00016931,2]
[366077740,1750050695018,-7364.67,0.00016931,2]
[366077741,1750050695029,-176.19992182,0.00016931,2]
[366077742,1750050695038,-490.0,0.00016931,2]
[366077743,1750050695049,-5076.36,0.00016931,2]
[366077744,1750050695059,-712.94,0.00016931,2]
[366077745,1750050695070,-1374.71,0.00016931,2]
[366077746,1750050695080,-490.0,0.00016931,2]
[366077747,1750050695090,-5164.05,0.00016931,2]
[366077748,1750050695100,-1565.78,0.00016931,2]
[366077749,1750050695111,-7477.45,0.00016931,2]
[366077750,1750050695121,-779.58,0.00016931,2]
[366077751,1750050695132,-1075.96,0.00016931,2]
[366077752,1750050695142,-1976.51,0.00016931,2]
[366077753,1750050695153,-490.0,0.00016931,2]
[366077754,1750050695163,-992.35,0.00016931,2]
[366077755,1750050695173,-1356.85,0.00016931,2]
[366077756,1750050695183,-2747.94,0.00016931,2]
[366077757,1750050695193,-3915.7,0.00016931,2]
[366077758,1750050695202,-521.49,0.00016931,2]
[366077759,1750050695213,-490.0,0.00016931,2]
[366077760,1750050695222,-490.0,0.00016931,2]
[366077761,1750050695232,-538.27,0.00016931,2]
[366077762,1750050695241,-600.63,0.00016931,2]
[366077763,1750050695251,-633.79,0.00016931,2]
[366077764,1750050695261,-699.01,0.00016931,2]
[366077765,1750050695271,-2370.49,0.00016931,2]
[366077766,1750050695281,-2631.75,0.00016931,2]
[366077767,1750050695290,-513.85,0.00016931,2]
[366077768,1750050695301,-6327.52,0.00016931,2]
[366077769,1750050695311,-11010.27,0.00016931,2]
[366077770,1750050695321,-490.0,0.00016931,2]
[366077771,1750050695331,-497.54,0.00016931,2]
[366077772,1750050695340,-490.0,0.00016931,2]
[366077773,1750050695351,-501.36,0.00016931,2]
[366077774,1750050695361,-4176.96,0.00016931,2]
[366077775,1750050695371,-2940.25,0.00016931,2]
[366077776,1750050695380,-490.0,0.00016931,2]
[366077777,1750050695390,-1116.02,0.00016931,2]
[366077778,1750050695400,-526.05,0.00016931,2]
[366077779,1750050695410,-1578.26,0.00016931,2]
[366077780,1750050695420,-490.0,0.00016931,2]
[366077781,1750050695430,-2097.37,0.00016931,2]
[366077782,1750050695440,-8874.58,0.00016931,2]
[366077783,1750050695450,-654.33,0.00016931,2]
[366077784,1750050695459,-4869.12,0.00016931,2]
[366077785,1750050695469,-490.0,0.00016931,2]
[366077786,1750050695478,-2443.77,0.00016931,2]
[366077787,1750050695488,-490.0,0.00016931,2]
[366077788,1750050695498,-1722.32,0.00016931,2]
[366077789,1750050695507,-1232.89,0.00016931,2]
[366077790,1750050695517,-490.0,0.00016931,2]
[366077791,1750050695527,-2552.81,0.00016931,2]
[366077792,1750050695538,-1892.34,0.00016931,2]
[366077793,1750050695548,-919.94,0.00016931,2]
[366077794,1750050695558,-1396.73,0.00016931,2]
[366077795,1750050695574,-490.0,0.00016931,2]
[366077796,1750050695593,-2321.77,0.00016931,2]
[366077797,1750050695608,-1310.4,0.00016931,2]
[366077798,1750050695620,-919.08,0.00016931,2]
[366077799,1750050695638,-511.96,0.00016931,2]
[366077800,1750050695653,-1202.72,0.00016931,2]
[366077801,1750050695670,-1380.97,0.00016931,2]
[366077802,1750050695686,-2012.61,0.00016931,2]
[366077803,1750050695701,-490.0,0.00016931,2]
[366077804,1750050695714,-842.55,0.00016931,2]
[366077805,1750050695730,-901.05,0.00016931,2]
[366077806,1750050695746,-3092.59,0.00016931,2]
[366077807,1750050695763,-490.0,0.00016931,2]
[366077808,1750050695779,-2866.79,0.00016931,2]
[366077809,1750050695797,-490.0,0.00016931,2]
[366077810,1750050695813,-2068.1,0.00016931,2]
[366077811,1750050695828,-2595.64,0.00016931,2]
[366077812,1750050695846,-1418.22,0.00016931,2]
[366077813,1750050695861,-1017.75,0.00016931,2]
[366077814,1750050695877,-1331.84,0.00016931,2]
[366077815,1750050695891,-4069.9,0.00016931,2]
[366077816,1750050695911,-570.06,0.00016931,2]
[366077817,1750050695927,-1892.5,0.00016931,2]
[366077818,1750050695942,-490.0,0.00016931,2]
[366077819,1750050695956,-1438.24,0.00016931,2]
[366077820,1750050695967,-2066.04,0.00016931,2]
[366077821,1750050695980,-490.0,0.00016931,2]
[366077822,1750050695997,-1870.27,0.00016931,2]
[366077823,1750050696013,-1150.56,0.00016931,2]
[366077824,1750050696025,-490.0,0.00016931,2]
[366077825,1750050696037,-2533.91,0.00016931,2]
[366077826,1750050696052,-490.0,0.00016931,2]
[366077827,1750050696069,-891.04,0.00016931,2]
[366077828,1750050696082,-6442.14,0.00016931,2]
[366077829,1750050696094,-490.0,0.00016931,2]
[366077830,1750050696107,-627.79,0.00016931,2]
[366077831,1750050696120,-1052.5,0.00016931,2]
[366077832,1750050696133,-490.0,0.00016931,2]
[366077833,1750050696146,-10732.31,0.00016931,2]
[366077834,1750050696159,-1838.83,0.00016931,2]
[366077835,1750050696172,-490.0,0.00016931,2]
[366077836,1750050696186,-3601.56,0.00016931,2]
[366077837,1750050696201,-490.0,0.00016931,2]
[366077838,1750050696215,-566.99,0.00016931,2]
[366077839,1750050696229,-2074.41,0.00016931,2]
[366077840,1750050696250,-1927.17,0.00016931,2]
[366077841,1750050696263,-7701.94,0.00016931,2]
[366077842,1750050696276,-2598.83,0.00016931,2]
[366077843,1750050696289,-2224.66,0.00016931,2]
[366077844,1750050696303,-1085.14,0.00016931,2]
[366077845,1750050696315,-4177.12,0.00016931,2]
[366077846,1750050696328,-644.54,0.00016931,2]
[366077847,1750050696341,-1387.96,0.00016931,2]
[366077848,1750050696356,-12298.08,0.00016931,2]
[366077849,1750050696369,-1897.46,0.00016931,2]
[366077850,1750050696381,-1192.68,0.00016931,2]
[366077851,1750050696394,-1300.72,0.00016931,2]
[366077852,1750050696407,-1471.9,0.00016931,2]
[366077853,1750050696420,-490.0,0.00016931,2]
[366077854,1750050696433,-1372.67,0.00016931,2]
[366077855,1750050696445,-2253.89,0.00016931,2]
[366077856,1750050696458,-4998.12,0.00016931,2]
[366077857,1750050696471,-502.02,0.00016931,2]
[366077858,1750050696484,-1274.32,0.00016931,2]
[366077859,1750050696497,-490.0,0.00016931,2]
[366077860,1750050696510,-551.47,0.00016931,2]
[366077861,1750050696523,-3619.39,0.00016931,2]
[366077862,1750050696536,-7870.53,0.00016931,2]
[366077863,1750050696550,-1391.31,0.00016931,2]
[366077864,1750050696563,-490.0,0.00016931,2]
[366077865,1750050696577,-3861.95,0.00016931,2]
[366077866,1750050696590,-490.0,0.00016931,2]
[366077867,1750050696604,-899.19,0.00016931,2]
[366077868,1750050696617,-898.72,0.00016931,2]
[366077869,1750050696632,-825.54,0.00016931,2]
[366077870,1750050696645,-5152.51,0.00016931,2]
[366077871,1750050696657,-699.91,0.00016931,2]
[366077872,1750050696670,-1489.38,0.00016931,2]
[366077873,1750050696684,-837.86,0.00016931,2]
[366077874,1750050696697,-490.0,0.00016931,2]
[366077875,1750050696710,-1112.46,0.00016931,2]
[366077876,1750050696723,-435.49817229,0.00016931,2]
[366077877,1750050696736,-490.0,0.00016931,2]
[366077878,1750050696748,-1627.94,0.00016931,2]
[366077879,1750050696762,-2062.4,0.00016931,2]
[366077880,1750050696775,-1530.87,0.00016931,2]
[366077881,1750050696789,-2165.0,0.00016931,2]
[366077882,1750050696802,-2866.15,0.00016931,2]
[366077883,1750050696816,-1064.04,0.00016931,2]
[366077884,1750050696829,-1602.19,0.00016931,2]
[366077885,1750050696841,-981.39,0.00016931,2]
[366077886,1750050696854,-1015.34,0.00016931,2]
[366077887,1750050696867,-2815.08,0.00016931,2]
[366077888,1750050696880,-4830.77,0.00016931,2]
[366077889,1750050696893,-1181.05,0.00016931,2]
[366077890,1750050696909,-490.0,0.00016931,2]
[366077891,1750050696922,-1484.94,0.00016931,2]
[366077892,1750050696935,-908.96,0.00016931,2]
[366077893,1750050696950,-1520.19,0.00016931,2]
[366077894,1750050696962,-4343.41,0.00016931,2]
[366077895,1750050696976,-4518.67,0.00016931,2]
[366077896,1750050696990,-19828.6,0.00016931,2]
[366077897,1750050697003,-2453.03,0.00016931,2]
[366077898,1750050697016,-1444.72,0.00016931,2]